[Event "Titled Tuesday Blitz July 6 2021"]
[White "Gunina, Valentina"]
[Black "Rosenberg, Evan S"]
[WhiteFideId "4167570"]
[BlackFideId "2019299"]
[WhiteElo "2399"]
[BlackElo "2394"]
[Result "1-0"]
[Round "01"]
[TimeControl "180+1"]
[Date "2021.07.06"]
[WhiteClock "0:00:13"]
[BlackClock "0:00:10"]

1. d4 {[%clk 0:03:00]}  Nf6 {[%clk 0:02:59]} 2. c4 {[%clk 0:03:00]}  e6 {[%clk 0:02:59]} 3. Nf3 {[%clk 0:02:59]}  d5 {[%clk 0:02:55]} 4. Nc3 {[%clk 0:02:59]}  Bb4 {[%clk 0:02:55]} 5. Qa4+ {[%clk 0:02:56]}  Nc6 {[%clk 0:02:55]} 6. e3 {[%clk 0:02:56]}  O-O {[%clk 0:02:52]} 7. Qc2 {[%clk 0:02:56]}  b6 {[%clk 0:02:51]} 8. cxd5 {[%clk 0:02:52]}  exd5 {[%clk 0:02:48]} 9. Bd3 {[%clk 0:02:52]}  Bb7 {[%clk 0:02:43]} 10. O-O {[%clk 0:02:50]}  Bd6 {[%clk 0:02:35]} 11. a3 {[%clk 0:02:50]}  a6 {[%clk 0:02:34]} 12. e4 {[%clk 0:02:39]}  dxe4 {[%clk 0:02:28]} 13. Nxe4 {[%clk 0:02:39]}  h6 {[%clk 0:01:53]} 14. Be3 {[%clk 0:02:32]}  Re8 {[%clk 0:01:42]} 15. Nxd6 {[%clk 0:02:29]}  Qxd6 {[%clk 0:01:42]} 16. Rac1 {[%clk 0:02:26]}  Nd5 {[%clk 0:01:34]} 17. Bd2 {[%clk 0:02:17]}  Qf6 {[%clk 0:01:24]} 18. Qc4 {[%clk 0:02:00]}  Rad8 {[%clk 0:01:13]} 19. Bb1 {[%clk 0:01:56]}  Nf4 {[%clk 0:00:48]} 20. Rfe1 {[%clk 0:01:22]}  Rxe1+ {[%clk 0:00:39]} 21. Rxe1 {[%clk 0:01:21]}  Nxg2 {[%clk 0:00:36]} 22. d5 {[%clk 0:00:47]}  Nxe1 {[%clk 0:00:30]} 23. Nxe1 {[%clk 0:00:37]}  Ne5 {[%clk 0:00:24]} 24. Qxc7 {[%clk 0:00:31]}  Bxd5 {[%clk 0:00:23]} 25. f4 {[%clk 0:00:20]}  Nc6 {[%clk 0:00:15]} 26. Bc3 {[%clk 0:00:18]}  Qd6 {[%clk 0:00:13]} 27. Qxd6 {[%clk 0:00:16]}  Rxd6 {[%clk 0:00:14]} 28. Kf2 {[%clk 0:00:16]}  g6 {[%clk 0:00:12]} 29. f5 {[%clk 0:00:15]}  gxf5 {[%clk 0:00:12]} 30. Bxf5 {[%clk 0:00:15]}  Be6 {[%clk 0:00:12]} 31. Be4 {[%clk 0:00:15]}  Nd4 {[%clk 0:00:11]} 32. Nd3 {[%clk 0:00:14]}  Nb5 {[%clk 0:00:11]} 33. Be5 {[%clk 0:00:14]}  Rd8 {[%clk 0:00:11]} 34. Nf4 {[%clk 0:00:15]}  Rc8 {[%clk 0:00:10]} 35. Nh5 {[%clk 0:00:14]}  Rc1 {[%clk 0:00:09]} 36. Nf6+ {[%clk 0:00:14]}  Kf8 {[%clk 0:00:10]} 37. Bf4 {[%clk 0:00:14]}  h5 {[%clk 0:00:09]} 38. Bxc1 {[%clk 0:00:14]}  Ke7 {[%clk 0:00:10]} 39. Nxh5 {[%clk 0:00:14]}  Nd6 {[%clk 0:00:09]} 40. Bd3 {[%clk 0:00:13]}  Bg4 {[%clk 0:00:09]} 41. Bg5+ {[%clk 0:00:13]}  Kd7 {[%clk 0:00:08]} 42. Nf6+ {[%clk 0:00:13]}  Ke6 {[%clk 0:00:08]} 43. Nxg4 {[%clk 0:00:13]}  b5 {[%clk 0:00:09]} 44. h4 {[%clk 0:00:13]}  Kd5 {[%clk 0:00:09]} 45. h5 {[%clk 0:00:13]}  Kd4 {[%clk 0:00:09]} 46. Bc2 {[%clk 0:00:13]}  Nc4 {[%clk 0:00:09]} 47. h6 {[%clk 0:00:12]}  Nxb2 {[%clk 0:00:10]} 48. Bf6+ {[%clk 0:00:13]} 1-0


[Site "https://www.chess.com"]

[Event "Titled Tuesday Blitz July 6 2021"]
[White "Iljiushenok, Ilia"]
[Black "Pereira, Juliano Resende M"]
[WhiteFideId "24105074"]
[BlackFideId "2109816"]
[WhiteElo "2560"]
[BlackElo "2402"]
[Result "0-1"]
[Round "01"]
[TimeControl "180+1"]
[Date "2021.07.06"]
[WhiteClock "0:01:15"]
[BlackClock "0:00:37"]

1. d4 {[%clk 0:02:59]}  Nf6 {[%clk 0:02:58]} 2. Bf4 {[%clk 0:02:59]}  d5 {[%clk 0:02:57]} 3. Nf3 {[%clk 0:02:59]}  c5 {[%clk 0:02:58]} 4. e3 {[%clk 0:02:59]}  cxd4 {[%clk 0:02:57]} 5. exd4 {[%clk 0:02:59]}  Qb6 {[%clk 0:02:58]} 6. Nc3 {[%clk 0:02:59]}  a6 {[%clk 0:02:51]} 7. a3 {[%clk 0:02:58]}  Bg4 {[%clk 0:02:47]} 8. Be2 {[%clk 0:02:51]}  Nc6 {[%clk 0:02:45]} 9. Na4 {[%clk 0:02:49]}  Qd8 {[%clk 0:02:44]} 10. O-O {[%clk 0:02:47]}  e6 {[%clk 0:02:43]} 11. c3 {[%clk 0:02:43]}  Be7 {[%clk 0:02:42]} 12. h3 {[%clk 0:02:39]}  Bh5 {[%clk 0:02:41]} 13. Re1 {[%clk 0:02:37]}  O-O {[%clk 0:02:41]} 14. b4 {[%clk 0:02:27]}  b6 {[%clk 0:02:29]} 15. Qb3 {[%clk 0:02:23]}  Ne4 {[%clk 0:02:24]} 16. Ne5 {[%clk 0:02:17]}  Nxe5 {[%clk 0:02:24]} 17. Bxe5 {[%clk 0:02:12]}  Bxe2 {[%clk 0:02:23]} 18. Rxe2 {[%clk 0:02:13]}  Nd6 {[%clk 0:02:19]} 19. Rae1 {[%clk 0:02:10]}  Nc4 {[%clk 0:02:16]} 20. Bg3 {[%clk 0:02:10]}  Rc8 {[%clk 0:02:05]} 21. Nb2 {[%clk 0:02:00]}  Nxb2 {[%clk 0:02:05]} 22. Qxb2 {[%clk 0:02:00]}  Bd6 {[%clk 0:02:04]} 23. Re3 {[%clk 0:01:59]}  Rc7 {[%clk 0:01:58]} 24. Qe2 {[%clk 0:01:58]}  b5 {[%clk 0:01:50]} 25. a4 {[%clk 0:01:54]}  Rc4 {[%clk 0:01:42]} 26. Ra1 {[%clk 0:01:50]}  Qc7 {[%clk 0:01:38]} 27. Bxd6 {[%clk 0:01:47]}  Qxd6 {[%clk 0:01:39]} 28. axb5 {[%clk 0:01:47]}  axb5 {[%clk 0:01:40]} 29. Rg3 {[%clk 0:01:44]}  Rfc8 {[%clk 0:01:37]} 30. Ra3 {[%clk 0:01:44]}  Qc7 {[%clk 0:01:31]} 31. Qg4 {[%clk 0:01:37]}  g6 {[%clk 0:01:31]} 32. Rf3 {[%clk 0:01:36]}  Qb7 {[%clk 0:01:21]} 33. Qf4 {[%clk 0:01:34]}  Qc7 {[%clk 0:01:16]} 34. Qf6 {[%clk 0:01:33]}  Qd7 {[%clk 0:01:11]} 35. h4 {[%clk 0:01:32]}  R4c7 {[%clk 0:01:11]} 36. h5 {[%clk 0:01:31]}  Qd8 {[%clk 0:01:12]} 37. Qf4 {[%clk 0:01:31]}  Qf8 {[%clk 0:01:08]} 38. h6 {[%clk 0:01:31]}  Qd8 {[%clk 0:01:07]} 39. Ra6 {[%clk 0:01:25]}  Qe7 {[%clk 0:01:03]} 40. Qe5 {[%clk 0:01:21]}  Qf8 {[%clk 0:00:55]} 41. Rxe6 {[%clk 0:01:22]}  Qxh6 {[%clk 0:00:51]} 42. Re8+ {[%clk 0:01:21]}  Rxe8 {[%clk 0:00:44]} 43. Qxe8+ {[%clk 0:01:22]}  Qf8 {[%clk 0:00:45]} 44. Qxb5 {[%clk 0:01:23]}  Qd6 {[%clk 0:00:39]} 45. Qe8+ {[%clk 0:01:17]}  Kg7 {[%clk 0:00:38]} 46. b5 {[%clk 0:01:15]}  Re7 {[%clk 0:00:37]} 0-1


[Site "https://www.chess.com"]

[Event "Titled Tuesday Blitz July 6 2021"]
[White "Jarovinsky, Alexey"]
[Black "Maung, Maung Kyaw Zaw Hein"]
[WhiteFideId "14115131"]
[BlackFideId "13001698"]
[WhiteElo "2446"]
[BlackElo "1785"]
[Result "1-0"]
[Round "01"]
[TimeControl "180+1"]
[Date "2021.07.06"]
[WhiteClock "0:01:27"]
[BlackClock "0:01:08"]

1. Nc3 {[%clk 0:03:00]}  d5 {[%clk 0:02:59]} 2. e4 {[%clk 0:03:00]}  dxe4 {[%clk 0:02:59]} 3. Nxe4 {[%clk 0:03:00]}  Bf5 {[%clk 0:02:59]} 4. Qf3 {[%clk 0:02:56]}  Bxe4 {[%clk 0:02:54]} 5. Qxe4 {[%clk 0:02:57]}  c6 {[%clk 0:02:54]} 6. Nf3 {[%clk 0:02:53]}  Nf6 {[%clk 0:02:54]} 7. Qd3 {[%clk 0:02:52]}  Nbd7 {[%clk 0:02:53]} 8. g3 {[%clk 0:02:47]}  e6 {[%clk 0:02:53]} 9. Bg2 {[%clk 0:02:47]}  Be7 {[%clk 0:02:53]} 10. O-O {[%clk 0:02:46]}  O-O {[%clk 0:02:53]} 11. b3 {[%clk 0:02:45]}  Nc5 {[%clk 0:02:45]} 12. Qe2 {[%clk 0:02:42]}  a5 {[%clk 0:02:41]} 13. a3 {[%clk 0:02:41]}  Nd5 {[%clk 0:02:32]} 14. Bb2 {[%clk 0:02:35]}  Bf6 {[%clk 0:02:32]} 15. Ne5 {[%clk 0:02:35]}  Nd7 {[%clk 0:02:32]} 16. f4 {[%clk 0:02:26]}  Nxe5 {[%clk 0:02:17]} 17. fxe5 {[%clk 0:02:27]}  Be7 {[%clk 0:02:16]} 18. d4 {[%clk 0:02:25]}  b5 {[%clk 0:02:11]} 19. c4 {[%clk 0:02:24]}  bxc4 {[%clk 0:01:59]} 20. bxc4 {[%clk 0:02:25]}  Nb6 {[%clk 0:01:54]} 21. Bxc6 {[%clk 0:02:23]}  Rc8 {[%clk 0:01:54]} 22. Bb5 {[%clk 0:02:22]}  Qc7 {[%clk 0:01:45]} 23. Rac1 {[%clk 0:02:20]}  Rfd8 {[%clk 0:01:39]} 24. Qf3 {[%clk 0:02:11]}  Bf8 {[%clk 0:01:34]} 25. d5 {[%clk 0:01:58]}  Qc5+ {[%clk 0:01:28]} 26. Kh1 {[%clk 0:01:50]}  exd5 {[%clk 0:01:28]} 27. Qxf7+ {[%clk 0:01:48]}  Kh8 {[%clk 0:01:28]} 28. e6 {[%clk 0:01:32]}  Nxc4 {[%clk 0:01:08]} 29. e7 {[%clk 0:01:29]}  Qxe7 {[%clk 0:01:08]} 30. Bxg7+ {[%clk 0:01:27]}  Bxg7 {[%clk 0:01:08]} 31. Qxe7 {[%clk 0:01:27]} 1-0


[Site "https://www.chess.com"]

[Event "Titled Tuesday Blitz July 6 2021"]
[White "Kamsky, Gata"]
[Black "Leenhouts, Koen"]
[WhiteFideId "2000024"]
[BlackFideId "1008439"]
[WhiteElo "2644"]
[BlackElo "2409"]
[Result "1-0"]
[Round "01"]
[TimeControl "180+1"]
[Date "2021.07.06"]
[WhiteClock "0:00:20"]
[BlackClock "0:00:01"]

1. e4 {[%clk 0:03:00]}  c5 {[%clk 0:02:55]} 2. Nc3 {[%clk 0:02:58]}  Nc6 {[%clk 0:02:54]} 3. Bc4 {[%clk 0:02:56]}  g6 {[%clk 0:02:53]} 4. d3 {[%clk 0:02:55]}  Bg7 {[%clk 0:02:53]} 5. a3 {[%clk 0:02:55]}  e6 {[%clk 0:02:52]} 6. Ba2 {[%clk 0:02:55]}  Nge7 {[%clk 0:02:51]} 7. Nf3 {[%clk 0:02:54]}  d6 {[%clk 0:02:43]} 8. O-O {[%clk 0:02:53]}  O-O {[%clk 0:02:43]} 9. Ne2 {[%clk 0:02:53]}  h6 {[%clk 0:02:25]} 10. Ng3 {[%clk 0:02:51]}  b5 {[%clk 0:02:14]} 11. c3 {[%clk 0:02:42]}  a5 {[%clk 0:02:05]} 12. d4 {[%clk 0:02:39]}  cxd4 {[%clk 0:02:00]} 13. cxd4 {[%clk 0:02:38]}  e5 {[%clk 0:01:42]} 14. d5 {[%clk 0:02:32]}  Nb8 {[%clk 0:01:20]} 15. Re1 {[%clk 0:02:25]}  Na6 {[%clk 0:01:18]} 16. Bd2 {[%clk 0:02:23]}  Nc5 {[%clk 0:01:15]} 17. Be3 {[%clk 0:02:17]}  Na4 {[%clk 0:01:09]} 18. Qd2 {[%clk 0:02:17]}  Kh7 {[%clk 0:01:00]} 19. b3 {[%clk 0:02:15]}  Nb6 {[%clk 0:00:54]} 20. Qe2 {[%clk 0:01:45]}  f5 {[%clk 0:00:42]} 21. Qxb5 {[%clk 0:01:34]}  Rb8 {[%clk 0:00:41]} 22. Qxa5 {[%clk 0:01:28]}  fxe4 {[%clk 0:00:33]} 23. Nxe4 {[%clk 0:01:24]}  Nbxd5 {[%clk 0:00:32]} 24. Qxd8 {[%clk 0:01:23]}  Rxd8 {[%clk 0:00:33]} 25. Bd2 {[%clk 0:01:16]}  Nf5 {[%clk 0:00:25]} 26. b4 {[%clk 0:01:14]}  Bb7 {[%clk 0:00:22]} 27. Rad1 {[%clk 0:01:12]}  Nd4 {[%clk 0:00:20]} 28. Nxd4 {[%clk 0:01:09]}  exd4 {[%clk 0:00:21]} 29. b5 {[%clk 0:00:40]}  Ra8 {[%clk 0:00:19]} 30. Bxd5 {[%clk 0:00:39]}  Bxd5 {[%clk 0:00:20]} 31. Bb4 {[%clk 0:00:39]}  Bb3 {[%clk 0:00:15]} 32. Rc1 {[%clk 0:00:35]}  d5 {[%clk 0:00:15]} 33. Nd2 {[%clk 0:00:34]}  Ba4 {[%clk 0:00:13]} 34. b6 {[%clk 0:00:34]}  Rab8 {[%clk 0:00:13]} 35. Rc7 {[%clk 0:00:33]}  Rxb6 {[%clk 0:00:12]} 36. Ree7 {[%clk 0:00:33]}  Rg8 {[%clk 0:00:13]} 37. h4 {[%clk 0:00:26]}  Rc6 {[%clk 0:00:13]} 38. Rxc6 {[%clk 0:00:25]}  Bxc6 {[%clk 0:00:14]} 39. Nf3 {[%clk 0:00:25]}  d3 {[%clk 0:00:11]} 40. Bc3 {[%clk 0:00:21]}  Kh8 {[%clk 0:00:05]} 41. Rxg7 {[%clk 0:00:20]}  Rxg7 {[%clk 0:00:06]} 42. Bxg7+ {[%clk 0:00:19]}  Kxg7 {[%clk 0:00:06]} 43. Kf1 {[%clk 0:00:20]}  Kf6 {[%clk 0:00:06]} 44. Ke1 {[%clk 0:00:20]}  Bb5 {[%clk 0:00:04]} 45. Kd2 {[%clk 0:00:20]}  Ba6 {[%clk 0:00:05]} 46. Ke3 {[%clk 0:00:20]}  Kf5 {[%clk 0:00:05]} 47. g3 {[%clk 0:00:19]}  Kg4 {[%clk 0:00:03]} 48. a4 {[%clk 0:00:19]}  Kh3 {[%clk 0:00:03]} 49. a5 {[%clk 0:00:20]}  Kg2 {[%clk 0:00:03]} 50. Ne1+ {[%clk 0:00:19]}  Kf1 {[%clk 0:00:01]} 51. Nxd3 {[%clk 0:00:20]}  Bxd3 {[%clk 0:00:01]} 52. Kxd3 {[%clk 0:00:20]} 1-0


[Site "https://www.chess.com"]

[Event "Titled Tuesday Blitz July 6 2021"]
[White "Kekic, Armin"]
[Black "Quintiliano Pinto, Renato R."]
[WhiteFideId "14401274"]
[BlackFideId "2117568"]
[WhiteElo "2373"]
[BlackElo "2439"]
[Result "1/2-1/2"]
[Round "01"]
[TimeControl "180+1"]
[Date "2021.07.06"]
[WhiteClock "0:00:08"]
[BlackClock "0:00:13"]

1. e4 {[%clk 0:03:00]}  c5 {[%clk 0:02:59]} 2. Nf3 {[%clk 0:02:51]}  d6 {[%clk 0:03:00]} 3. d4 {[%clk 0:02:50]}  cxd4 {[%clk 0:03:01]} 4. Nxd4 {[%clk 0:02:50]}  Nf6 {[%clk 0:03:01]} 5. Nc3 {[%clk 0:02:50]}  a6 {[%clk 0:03:02]} 6. g3 {[%clk 0:02:50]}  e5 {[%clk 0:03:01]} 7. Nb3 {[%clk 0:02:50]}  Be7 {[%clk 0:03:02]} 8. Bg2 {[%clk 0:02:50]}  O-O {[%clk 0:02:46]} 9. O-O {[%clk 0:02:49]}  b5 {[%clk 0:02:46]} 10. Nd5 {[%clk 0:02:48]}  Nxd5 {[%clk 0:02:43]} 11. exd5 {[%clk 0:02:49]}  Nd7 {[%clk 0:02:17]} 12. Be3 {[%clk 0:02:42]}  Nf6 {[%clk 0:02:12]} 13. h3 {[%clk 0:02:34]}  Bb7 {[%clk 0:01:59]} 14. Qd2 {[%clk 0:02:34]}  a5 {[%clk 0:01:55]} 15. Rad1 {[%clk 0:02:02]}  a4 {[%clk 0:01:49]} 16. Nc1 {[%clk 0:02:01]}  Qa5 {[%clk 0:01:43]} 17. c3 {[%clk 0:01:59]}  Rfc8 {[%clk 0:01:40]} 18. a3 {[%clk 0:01:58]}  Rc4 {[%clk 0:01:24]} 19. Na2 {[%clk 0:01:53]}  Ne4 {[%clk 0:01:08]} 20. Qd3 {[%clk 0:01:41]}  f5 {[%clk 0:01:05]} 21. Nb4 {[%clk 0:01:39]}  Rf8 {[%clk 0:00:51]} 22. Nc6 {[%clk 0:01:28]}  Qc7 {[%clk 0:00:49]} 23. Na7 {[%clk 0:01:22]}  Qd7 {[%clk 0:00:39]} 24. Rfe1 {[%clk 0:01:05]}  g6 {[%clk 0:00:33]} 25. Kh2 {[%clk 0:00:57]}  Ra8 {[%clk 0:00:21]} 26. Nc6 {[%clk 0:00:55]}  Bxc6 {[%clk 0:00:20]} 27. dxc6 {[%clk 0:00:51]}  Qxc6 {[%clk 0:00:21]} 28. Qd5+ {[%clk 0:00:35]}  Qxd5 {[%clk 0:00:21]} 29. Rxd5 {[%clk 0:00:36]}  Rb8 {[%clk 0:00:22]} 30. Red1 {[%clk 0:00:32]}  Rc6 {[%clk 0:00:21]} 31. Bxe4 {[%clk 0:00:26]}  fxe4 {[%clk 0:00:20]} 32. g4 {[%clk 0:00:25]}  Kf7 {[%clk 0:00:21]} 33. Kg2 {[%clk 0:00:24]}  Ke6 {[%clk 0:00:21]} 34. Kf1 {[%clk 0:00:19]}  Bd8 {[%clk 0:00:21]} 35. Ke2 {[%clk 0:00:19]}  Bc7 {[%clk 0:00:20]} 36. Bg5 {[%clk 0:00:16]}  Bb6 {[%clk 0:00:17]} 37. Be3 {[%clk 0:00:15]}  Bc7 {[%clk 0:00:15]} 38. Bh6 {[%clk 0:00:11]}  Rc4 {[%clk 0:00:15]} 39. Be3 {[%clk 0:00:08]}  Rc6 {[%clk 0:00:13]} 1/2-1/2


[Site "https://www.chess.com"]

[Event "Titled Tuesday Blitz July 6 2021"]
[White "Khalafova, Narmin"]
[Black "Makhnev, Denis"]
[WhiteFideId "13402625"]
[BlackFideId "13707647"]
[WhiteElo "2109"]
[BlackElo "2537"]
[Result "0-1"]
[Round "01"]
[TimeControl "180+1"]
[Date "2021.07.06"]
[WhiteClock "0:00:12"]
[BlackClock "0:00:24"]

1. e4 {[%clk 0:03:00]}  c6 {[%clk 0:02:58]} 2. Nc3 {[%clk 0:02:59]}  d5 {[%clk 0:02:57]} 3. Nf3 {[%clk 0:02:58]}  Bg4 {[%clk 0:02:56]} 4. h3 {[%clk 0:02:54]}  Bh5 {[%clk 0:02:56]} 5. g4 {[%clk 0:02:48]}  Bg6 {[%clk 0:02:53]} 6. exd5 {[%clk 0:02:45]}  cxd5 {[%clk 0:02:53]} 7. Bb5+ {[%clk 0:02:45]}  Nc6 {[%clk 0:02:52]} 8. d4 {[%clk 0:02:45]}  e6 {[%clk 0:02:48]} 9. Be3 {[%clk 0:02:35]}  Bb4 {[%clk 0:02:45]} 10. Ne5 {[%clk 0:02:28]}  Ne7 {[%clk 0:02:44]} 11. Qd2 {[%clk 0:02:17]}  O-O {[%clk 0:02:41]} 12. Nxg6 {[%clk 0:02:11]}  Nxg6 {[%clk 0:02:34]} 13. h4 {[%clk 0:02:06]}  Nxh4 {[%clk 0:02:07]} 14. O-O-O {[%clk 0:02:01]}  Nf3 {[%clk 0:01:52]} 15. Qd3 {[%clk 0:01:47]}  f5 {[%clk 0:01:43]} 16. gxf5 {[%clk 0:01:22]}  Rxf5 {[%clk 0:01:41]} 17. Ne2 {[%clk 0:01:17]}  g6 {[%clk 0:01:29]} 18. Ng3 {[%clk 0:01:01]}  Rf7 {[%clk 0:01:26]} 19. Kb1 {[%clk 0:00:56]}  Bd6 {[%clk 0:01:25]} 20. Rh3 {[%clk 0:00:53]}  Ng5 {[%clk 0:01:20]} 21. Rh6 {[%clk 0:00:49]}  Rc8 {[%clk 0:01:11]} 22. Rdh1 {[%clk 0:00:48]}  Nb4 {[%clk 0:01:06]} 23. Qd2 {[%clk 0:00:24]}  Nf3 {[%clk 0:01:03]} 24. Qd1 {[%clk 0:00:23]}  Nxc2 {[%clk 0:01:01]} 25. Bd3 {[%clk 0:00:18]}  Nxe3 {[%clk 0:01:00]} 26. fxe3 {[%clk 0:00:19]}  Qg5 {[%clk 0:00:45]} 27. Nf5 {[%clk 0:00:18]}  Rxf5 {[%clk 0:00:39]} 28. Bxf5 {[%clk 0:00:18]}  Qxf5+ {[%clk 0:00:39]} 29. Ka1 {[%clk 0:00:19]}  Ng5 {[%clk 0:00:32]} 30. Rf1 {[%clk 0:00:19]}  Qe4 {[%clk 0:00:31]} 31. Rg1 {[%clk 0:00:15]}  Qxe3 {[%clk 0:00:28]} 32. Qb1 {[%clk 0:00:14]}  Ne4 {[%clk 0:00:26]} 33. Qf1 {[%clk 0:00:12]}  Qxh6 {[%clk 0:00:24]} 0-1


[Site "https://www.chess.com"]

[Event "Titled Tuesday Blitz July 6 2021"]
[White "Khusnutdinov, Rustam"]
[Black "Ogloblin, Nikolay"]
[WhiteFideId "13701703"]
[BlackFideId "4139658"]
[WhiteElo "2571"]
[BlackElo "2244"]
[Result "1-0"]
[Round "01"]
[TimeControl "180+1"]
[Date "2021.07.06"]
[WhiteClock "0:00:18"]
[BlackClock "0:00:23"]

1. d4 {[%clk 0:02:48]}  Nf6 {[%clk 0:02:58]} 2. c4 {[%clk 0:02:45]}  e6 {[%clk 0:02:57]} 3. Nc3 {[%clk 0:02:43]}  Bb4 {[%clk 0:02:57]} 4. f3 {[%clk 0:02:42]}  c5 {[%clk 0:02:54]} 5. d5 {[%clk 0:02:41]}  b5 {[%clk 0:02:53]} 6. e4 {[%clk 0:02:25]}  bxc4 {[%clk 0:02:52]} 7. Bxc4 {[%clk 0:02:25]}  d6 {[%clk 0:02:51]} 8. Ne2 {[%clk 0:02:22]}  O-O {[%clk 0:02:49]} 9. O-O {[%clk 0:02:22]}  e5 {[%clk 0:02:44]} 10. Kh1 {[%clk 0:02:18]}  Nbd7 {[%clk 0:02:42]} 11. Ng3 {[%clk 0:02:11]}  Nb6 {[%clk 0:02:43]} 12. Bd3 {[%clk 0:02:07]}  c4 {[%clk 0:02:43]} 13. Bc2 {[%clk 0:02:01]}  Bd7 {[%clk 0:02:39]} 14. Bg5 {[%clk 0:02:01]}  h6 {[%clk 0:02:38]} 15. Be3 {[%clk 0:02:01]}  Rc8 {[%clk 0:02:34]} 16. Nce2 {[%clk 0:01:39]}  Bc5 {[%clk 0:02:32]} 17. Bd2 {[%clk 0:01:39]}  Qe8 {[%clk 0:02:18]} 18. h3 {[%clk 0:01:16]}  Nh7 {[%clk 0:02:09]} 19. f4 {[%clk 0:01:11]}  exf4 {[%clk 0:02:08]} 20. Rxf4 {[%clk 0:01:10]}  f6 {[%clk 0:01:56]} 21. h4 {[%clk 0:00:58]}  Na4 {[%clk 0:01:44]} 22. b3 {[%clk 0:00:56]}  cxb3 {[%clk 0:01:42]} 23. axb3 {[%clk 0:00:56]}  Nb6 {[%clk 0:01:37]} 24. Rxa7 {[%clk 0:00:46]}  Nxd5 {[%clk 0:01:35]} 25. Rxd7 {[%clk 0:00:46]}  Nxf4 {[%clk 0:01:34]} 26. Rxg7+ {[%clk 0:00:44]}  Kxg7 {[%clk 0:01:33]} 27. Nxf4 {[%clk 0:00:45]}  Kh8 {[%clk 0:01:22]} 28. Nf5 {[%clk 0:00:42]}  Rg8 {[%clk 0:01:07]} 29. Nxh6 {[%clk 0:00:40]}  Bd4 {[%clk 0:00:51]} 30. Nxg8 {[%clk 0:00:34]}  Qxg8 {[%clk 0:00:46]} 31. Qh5 {[%clk 0:00:33]}  Rxc2 {[%clk 0:00:35]} 32. Ng6+ {[%clk 0:00:33]}  Kg7 {[%clk 0:00:35]} 33. Bh6+ {[%clk 0:00:27]}  Kf7 {[%clk 0:00:35]} 34. Qd5+ {[%clk 0:00:27]}  Kxg6 {[%clk 0:00:32]} 35. Qxg8+ {[%clk 0:00:27]}  Kxh6 {[%clk 0:00:32]} 36. h5 {[%clk 0:00:23]}  Rc1+ {[%clk 0:00:27]} 37. Kh2 {[%clk 0:00:23]}  Be5+ {[%clk 0:00:28]} 38. g3 {[%clk 0:00:20]}  Rc2+ {[%clk 0:00:25]} 39. Kh3 {[%clk 0:00:18]}  Ng5+ {[%clk 0:00:23]} 40. Kg4 {[%clk 0:00:18]} 1-0


[Site "https://www.chess.com"]

[Event "Titled Tuesday Blitz July 6 2021"]
[White "Koelle, Tobias"]
[Black "Jacobson, Brandon"]
[WhiteFideId "16207378"]
[BlackFideId "30901561"]
[WhiteElo "2364"]
[BlackElo "2362"]
[Result "1-0"]
[Round "01"]
[TimeControl "180+1"]
[Date "2021.07.06"]
[WhiteClock "0:00:08"]
[BlackClock "0:00:31"]

1. d4 {[%clk 0:02:59]}  Nf6 {[%clk 0:02:58]} 2. c4 {[%clk 0:02:58]}  e6 {[%clk 0:02:58]} 3. Nc3 {[%clk 0:02:54]}  d5 {[%clk 0:02:58]} 4. cxd5 {[%clk 0:02:54]}  exd5 {[%clk 0:02:59]} 5. Bg5 {[%clk 0:02:55]}  c6 {[%clk 0:02:56]} 6. e3 {[%clk 0:02:51]}  h6 {[%clk 0:02:56]} 7. Bh4 {[%clk 0:02:50]}  Be7 {[%clk 0:02:57]} 8. Bd3 {[%clk 0:02:50]}  O-O {[%clk 0:02:57]} 9. Nf3 {[%clk 0:02:48]}  Re8 {[%clk 0:02:57]} 10. Qc2 {[%clk 0:02:46]}  Nbd7 {[%clk 0:02:57]} 11. O-O {[%clk 0:02:45]}  Ne4 {[%clk 0:02:58]} 12. Bxe7 {[%clk 0:02:41]}  Qxe7 {[%clk 0:02:59]} 13. Nd2 {[%clk 0:02:41]}  Ndf6 {[%clk 0:02:50]} 14. Ndxe4 {[%clk 0:02:40]}  dxe4 {[%clk 0:02:50]} 15. Bc4 {[%clk 0:02:40]}  Be6 {[%clk 0:02:50]} 16. Qb3 {[%clk 0:02:36]}  Bxc4 {[%clk 0:02:47]} 17. Qxc4 {[%clk 0:02:37]}  Qd6 {[%clk 0:02:47]} 18. h3 {[%clk 0:02:30]}  Re6 {[%clk 0:02:39]} 19. b4 {[%clk 0:02:28]}  Nd5 {[%clk 0:02:35]} 20. Nxd5 {[%clk 0:02:27]}  cxd5 {[%clk 0:02:36]} 21. Qc5 {[%clk 0:02:19]}  Qd7 {[%clk 0:02:33]} 22. b5 {[%clk 0:02:15]}  b6 {[%clk 0:02:25]} 23. Qb4 {[%clk 0:02:12]}  Rg6 {[%clk 0:02:25]} 24. Kh1 {[%clk 0:02:10]}  f5 {[%clk 0:02:25]} 25. Rac1 {[%clk 0:02:04]}  Rf8 {[%clk 0:02:25]} 26. Qa4 {[%clk 0:01:17]}  f4 {[%clk 0:02:02]} 27. exf4 {[%clk 0:01:16]}  Rxf4 {[%clk 0:02:02]} 28. Rc6 {[%clk 0:01:15]}  Rg3 {[%clk 0:01:30]} 29. Kh2 {[%clk 0:00:50]}  Rd3 {[%clk 0:01:16]} 30. Qc2 {[%clk 0:00:33]}  Rxh3+ {[%clk 0:01:06]} 31. gxh3 {[%clk 0:00:33]}  Rf3 {[%clk 0:01:06]} 32. Rg6 {[%clk 0:00:23]}  Qxh3+ {[%clk 0:00:46]} 33. Kg1 {[%clk 0:00:23]}  e3 {[%clk 0:00:47]} 34. Rg2 {[%clk 0:00:14]}  exf2+ {[%clk 0:00:41]} 35. Rfxf2 {[%clk 0:00:14]}  Rc3 {[%clk 0:00:41]} 36. Qe2 {[%clk 0:00:08]}  Re3 {[%clk 0:00:38]} 37. Qd2 {[%clk 0:00:07]}  Rd3 {[%clk 0:00:38]} 38. Qe2 {[%clk 0:00:07]}  Re3 {[%clk 0:00:39]} 39. Qf1 {[%clk 0:00:08]}  Qh4 {[%clk 0:00:31]} 40. Rf8+ {[%clk 0:00:07]}  Kh7 {[%clk 0:00:31]} 41. Qf5+ {[%clk 0:00:08]} 1-0


[Site "https://www.chess.com"]